Cogmind - Beta 13 @@@ ROGUE MODE // 2024.03.12 @ 11:40:48 Player: Rohain Result: Destroyed by as-06268 with Assembled Heavy Rifle Performance ------------- Evolutions (1) 500 Regions Visited (4) 800 Robots Destroyed (29) 145 Value Destroyed (622) 622 Prototype IDs (2) 40 Alien Tech Used (0) 0 Bonus (0) 0 TOTAL SCORE: 2107 Bonus ------- None Cogmind --------- Core Integrity 0/400 Matter 300/300 Energy 280/280 System Corruption 3% Temperature Warm (191) Movement Walking (120) Location -9/Mines Parts ------- > --- POWER (1) -------- Heavy Ion Engine > --- PROPULSION (4) --- Aluminum Leg Improved Aluminum Leg > --- UTILITY (2) ------ Medium Storage Unit > --- WEAPON (2) ------- Katana Ripper > --- INVENTORY (10) --- Light Ion Engine Light Ion Engine Medium Storage Unit Improved Targeting Computer Light Armor Plating Sensor Drone Bay Light Assault Rifle Grenade Launcher Peak State ------------ > --- POWER ------------ Heavy Ion Engine > --- PROPULSION ------- Aluminum Leg Aluminum Leg Aluminum Leg Aluminum Leg > --- UTILITY ---------- Medium Storage Unit Melee Analysis Suite > --- WEAPON ----------- Katana Ripper > --- INVENTORY -------- Light Ion Engine Light Ion Engine Improved Aluminum Leg Light Armor Plating Sensor Drone Bay EM Pulse Gun Light Assault Rifle Grenade Launcher [Rating: 19] Favorites ----------- Power Heavy Ion Engine Engine Heavy Ion Engine Power Core Light Nuclear Core Propulsion Aluminum Leg Leg Aluminum Leg Utility Medium Storage Unit Storage Medium Storage Unit Processor Melee Analysis Suite Protection Light Armor Plating Weapon Ripper Energy Gun Improved Medium Laser Ballistic Gun Assault Rifle Slashing Weapon Ripper Build | -11 -10 -10 -9 -9 ------- Run | Yrd Mat Min Mat Min Slots Evolved 2 | . . . 2 . Power . | . . . . . Propulsion 2 | . . . 2 . Utility . | . . . . . Weapon . | . . . . . Parts Attached 28 | 6 2 3 15 2 Power 6 | 1 . 1 4 . Engine 5 | 1 . . 4 . Core 1 | . . 1 . . Reactor . | . . . . . Propulsion 11 | 2 . . 7 2 Treads . | . . . . . Leg 11 | 2 . . 7 2 Wheel . | . . . . . Hover . | . . . . . Flight . | . . . . . Utility 5 | 1 2 1 1 . Device . | . . . . . Storage 2 | 1 . 1 . . Processor 1 | . . . 1 . Hackware . | . . . . . Protection 2 | . 2 . . . Artifact . | . . . . . Weapon 6 | 2 . 1 3 . Energy Gun 1 | . . . 1 . Energy Cannon . | . . . . . Ballistic Gun 2 | 2 . . . . Ballistic Cannon . | . . . . . Launcher . | . . . . . Special Weapon . | . . . . . Impact Weapon . | . . . . . Slashing Weapon 3 | . . 1 2 . Piercing Weapon . | . . . . . Special Melee Weapon . | . . . . . Unidentified Prototypes 2 | . . . 2 . Parts Lost 9 | . . . 4 5 Power 1 | . . . 1 . Propulsion 7 | . . . 3 4 Utility 1 | . . . . 1 Weapon . | . . . . . Highest Loss Streak 4 | . . . 2 4 To Critical Strikes . | . . . . . Average Slot Usage (%) 94 | . 99 100 98 79 Engine 10 | . 14 7 10 11 Core 1 | . . 6 . . Leg 34 | . 28 28 42 27 Storage 11 | . 14 14 11 11 Processor 6 | . . . 9 7 Protection 4 | . 13 14 . . Ballistic Gun 6 | . 28 14 2 . Slashing Weapon 17 | . . 13 19 22 Naked Turns . | . . . . . Heaviest Build 23 | 11 14 23 23 23 Greatest Support 40 | 20 20 20 40 40 Greatest Overweight (x) 1 | . . 1 1 1 Average Overweight (x) . | . . . . . Largest Inventory Capacity 10 | 8 8 10 10 10 Average Capacity 9 | 7 8 8 10 10 Most Carried 10 | 4 3 8 10 10 Average Carried 7 | 1 2 5 8 8 Final Capacity 10 | 8 8 10 10 10 Final Carried 10 | 2 3 8 10 8 Class Distribution -------------------- 45% | Mutant 39% | Scavenger-Gladiator 12% | Gladiator 3% | Scavenger-Mutant Dominant Class ---------------- Mutant | -10/Materials Mutant | -10/Mines Scavenger-Gladiator | -9/Materials Scavenger-Gladiator | -9/Mines Resources | -11 -10 -10 -9 -9 ----------- Run | Yrd Mat Min Mat Min Matter Collected 490 | 185 23 104 158 20 Remotely . | . . . . . Salvage Created 1210 | . 23 119 955 113 Parts 73 | . 1 6 59 7 Haulers Intercepted 3 | . . . 3 . Recyclers Shooed . | . . . . . Parts Field Recycled . | . . . . . Retrieved Matter . | . . . . . Parts Self-Destructed . | . . . . . Prevented . | . . . . . Kills | -11 -10 -10 -9 -9 ------- Run | Yrd Mat Min Mat Min Combat Hostiles Destroyed 21 | . . . 17 4 Melee 21 | . . . 17 4 Classes Destroyed 11 | . 1 2 6 2 Worker 2 | . . 1 1 . Tunneler 2 | . . . . 2 Hauler 3 | . . . 3 . Recycler 3 | . . 1 2 . Operator 1 | . . . 1 . Watcher 1 | . 1 . . . Swarmer 4 | . . . 4 . Grunt 7 | . . . 7 . Duelist 1 | . . . 1 . Sentry 5 | . . . 5 . Assembled 4 | . . . . 4 Best Kill Streak 6 | . 1 1 6 2 Combat Bots Only 5 | . . . 5 2 Max Kills in Single Turn 1 | . 1 1 1 1 Gunslinging . | . . . . . Exploded . | . . . . . Melee 1 | . . . 1 1 Uniques/NPCs Destroyed . | . . . . . Combat | -11 -10 -10 -9 -9 -------- Run | Yrd Mat Min Mat Min Hostile Shots Fired 121 | . . . 96 25 Missed 31 | . . . 24 7 Damage Taken 1499 | . . . 902 597 Core 416 | . . . 188 228 Absorbed by Shields . | . . . . . Core Remaining (%) 100 | 100 . 100 . . Volleys Fired 4 | . 3 . 1 . Largest 2 | . 2 . 1 . Hottest 40 | . 40 . 20 . Shots Fired 7 | . 6 . 1 . Gun 7 | . 6 . 1 . Cannon . | . . . . . Launcher . | . . . . . Special . | . . . . . Kinetic 7 | . 6 . 1 . Thermal . | . . . . . Explosive . | . . . . . Electromagnetic . | . . . . . Robot Hit Streak 2 | . 2 . . . Robot Miss Streak 3 | . 2 . 3 . Penetration Max . | . . . . . Secondary Targets . | . . . . . Shots Hit Robots 69 | . 2 2 57 8 Core Hits 28 | . 2 1 22 3 Critical Kills . | . . . . . Critical Parts Destroyed . | . . . . . Critical Strikes 6 | . . . 6 . Sever 6 | . . . 6 . Melee Attacks 86 | . . 2 72 12 Impact . | . . . . . Slashing 86 | . . 2 72 12 Piercing . | . . . . . Sneak Attacks 13 | . . 2 9 2 Combat Hostiles . | . . . . . Follow-up Attacks 3 | . . . 2 1 Damage Inflicted 2890 | . 19 155 2302 414 Guns 19 | . 19 . . . Cannons . | . . . . . Explosions . | . . . . . Melee 2871 | . . 155 2302 414 Ramming . | . . . . . Kinetic 19 | . 19 . . . Thermal . | . . . . . Explosive . | . . . . . Electromagnetic . | . . . . . Impact . | . . . . . Slashing 2871 | . . 155 2302 414 Piercing . | . . . . . Highest Corruption 3 | . . . . 3 Average Corruption 3 | . . . . 3 Corruption Purged . | . . . . . Corruption Blocked . | . . . . . Effects 3 | . . . . 3 Message Errors 2 | . . . . 2 Heat Flow Errors 1 | . . . . 1 Overload Shots . | . . . . . Overflow Damage 339 | . . 59 188 92 Projectiles . | . . . . . Explosions . | . . . . . Melee 339 | . . 59 188 92 Knockbacks . | . . . . . Impact . | . . . . . Kinetic . | . . . . . Secondary . | . . . . . Self-Inflicted Damage . | . . . . . Shots . | . . . . . Rammed . | . . . . . Targets Rammed . | . . . . . Kicked . | . . . . . Crushed . | . . . . . Highest Temperature 381 | . 6 . 381 251 Average Temperature 151 | . 4 . 179 221 Received Heat Transfer 285 | . . . 285 . Effects 1 | . . . 1 . Interference 1 | . . . 1 . Siege Activations . | . . . . . Robots Corrupted . | . . . . . Combat Hostiles . | . . . . . Parts Fried . | . . . . . Impact Corruptions . | . . . . . Robots Melted . | . . . . . Combat Hostiles . | . . . . . Parts Melted . | . . . . . Heat Transferred . | . . . . . Parts Sabotaged . | . . . . . Parts Stolen . | . . . . . Parts Stripped . | . . . . . Power Chain Reactions . | . . . . . Alert | -11 -10 -10 -9 -9 ------- Run | Yrd Mat Min Mat Min Peak Influence 354 | . 45 27 354 87 Initial 82 | . . 17 10 82 Average 92 | . 26 23 177 25 Maximum Alert Level 1 | . . . 1 . Low Security (%) 78 | 100 100 100 51 100 Level 1 21 | . . . 48 . Level 2 . | . . . . . Level 3 . | . . . . . Level 4 . | . . . . . Level 5 . | . . . . . High Security . | . . . . . Max Security . | . . . . . Squads Dispatched . | . . . . . Investigation . | . . . . . Extermination . | . . . . . Reinforcement . | . . . . . Assault . | . . . . . Garrison . | . . . . . Intercept . | . . . . . Searches Triggered . | . . . . . Construction Impeded . | . . . . . Haulers Reinforced . | . . . . . Active Scanning Responses . | . . . . . Cargo Convoy Interrupts . | . . . . . Stealth | -11 -10 -10 -9 -9 --------- Run | Yrd Mat Min Mat Min Distress Signals . | . . . . . Communications Jammed . | . . . . . Distress Signals . | . . . . . Times Spotted 32 | . 2 . 21 9 Peak Tracking Total 6 | . 1 . 6 2 Tactical Retreats 4 | . . . 2 2 Traps | -11 -10 -10 -9 -9 ------- Run | Yrd Mat Min Mat Min Traps Triggered . | . . . . . Indirectly . | . . . . . Trap Hack Attempts . | . . . . . Triggered . | . . . . . Disarmed . | . . . . . Reprogrammed . | . . . . . Reused . | . . . . . Traps Extracted . | . . . . . Installed . | . . . . . Triggered . | . . . . . Machines | -11 -10 -10 -9 -9 ---------- Run | Yrd Mat Min Mat Min Machines Disabled . | . . . . . Max in Single Turn . | . . . . . Machines Repaired . | . . . . . Machines Dismantled . | . . . . . Machines Sabotaged . | . . . . . Overloaded Fab Kills . | . . . . . Hacking | -11 -10 -10 -9 -9 --------- Run | Yrd Mat Min Mat Min Machines Accessed 9 | . 3 1 5 . Terminals 8 | . 3 . 5 . Fabricators . | . . . . . Repair Stations . | . . . . . Recycling Units . | . . . . . Scanalyzers . | . . . . . Garrison Access . | . . . . . Total Hacks 16 | . 5 1 10 . Successful 10 | . 4 1 5 . Failed 6 | . 1 . 5 . Catastrophic . | . . . . . Database Lockouts . | . . . . . Manual 15 | . 5 . 10 . Terminals 15 | . 5 . 10 . Fabricators . | . . . . . Repair Stations . | . . . . . Recycling Units . | . . . . . Scanalyzers . | . . . . . Garrison Access . | . . . . . Terminal Hacks 4 | . . 1 3 . Robot Analysis 1 | . . . 1 . Open Door 1 | . . 1 . . Locate Traps 2 | . . . 2 . Fabricator Hacks . | . . . . . Repair Station Hacks . | . . . . . Recycling Unit Hacks . | . . . . . Scanalyzer . | . . . . . Garrison Access Hacks . | . . . . . Unauthorized Hacks 6 | . 4 . 2 . Terminals 6 | . 4 . 2 . Botnet 5 | . 3 . 2 . Operators 1 | . 1 . . . Fabricators . | . . . . . Repair Stations . | . . . . . Recycling Units . | . . . . . Scanalyzers . | . . . . . Garrison Access . | . . . . . Data Cores Recovered 1 | . . . 1 . Used . | . . . . . Hacking Detections 7 | . 2 . 5 . Full Trace Events . | . . . . . Feedback Events . | . . . . . Feedback Blocked . | . . . . . Robot Schematics Acquired . | . . . . . Robots Built . | . . . . . Authchips . | . . . . . Time . | . . . . . Total Robot Build Rating . | . . . . . Part Schematics Acquired . | . . . . . Parts Built . | . . . . . Authchips . | . . . . . Time . | . . . . . Total Part Build Rating . | . . . . . Parts Repaired . | . . . . . Time . | . . . . . Parts Recycled . | . . . . . Recycled Matter . | . . . . . Retrieved Matter . | . . . . . Retrieved Components . | . . . . . Parts Scanalyzed . | . . . . . Part Schematics Acquired . | . . . . . Parts Damaged . | . . . . . Bothacking | -11 -10 -10 -9 -9 ------------ Run | Yrd Mat Min Mat Min Used RIF Installer . | . . . . . Robots Hacked . | . . . . . Non-combat . | . . . . . Combat . | . . . . . Robot Hacks Applied . | . . . . . Relay Couplers Released . | . . . . . Fabnet Peak Effective % . | . . . . . Robots Rewired . | . . . . . Allies Hacked . | . . . . . Hacks Repelled . | . . . . . Allies | -11 -10 -10 -9 -9 -------- Run | Yrd Mat Min Mat Min Total Allies 3 | . . . . 3 Largest Group 2 | . . . . 2 Highest-Rated Group 32 | . . . . 32 Highest-Rated Ally 16 | . . . . 16 Total Orders . | . . . . . Ally Attacks 6 | . . . . 6 Total Damage 71 | . . . . 71 Kills . | . . . . . Allies Corrupted . | . . . . . Allies Melted . | . . . . . Intel | -11 -10 -10 -9 -9 ------- Run | Yrd Mat Min Mat Min Robot Analysis Total 1 | . . . 1 . Derelict Logs Recovered 1 | . . . . 1 Drone Launches . | . . . . . Drone Recoveries . | . . . . . Exploration | -11 -10 -10 -9 -9 ------------- Run | Yrd Mat Min Mat Min Turns Passed 1988 | 69 165 384 893 477 Spaces Moved 1356 | 52 127 307 511 359 Core 7 | 7 . . . . Treads . | . . . . . Legs 1349 | 45 127 307 511 359 Wheels . | . . . . . Hover . | . . . . . Flight . | . . . . . Fastest Speed 50 | 50 120 120 120 120 Average Speed 120 | 110 120 121 120 120 Slowest Speed 190 | 120 120 190 190 190 Overloaded Moves . | . . . . . Propulsion Burnouts . | . . . . . Robots Hopped . | . . . . . Cave-ins Triggered . | . . . . . Exploration Rate (%) 37 | 3 23 54 40 68 Regions Visited 4 Branch Regions 2 Pre-discovered Areas 1 | . . . . 1 Known Exits Taken . | . . . . . Unknown Exits Taken 4 | 1 1 1 1 . Scrap Searched 2 | . . 1 . 1 Spaces Dug . | . . . . . Terrain Destroyed . | . . . . . Melee . | . . . . . Projectile . | . . . . . AOE . | . . . . . Terrain Rammed . | . . . . . Walls Destroyed . | . . . . . Machines Disabled . | . . . . . Actions | -11 -10 -10 -9 -9 --------- Run | Yrd Mat Min Mat Min Total 1584 | 61 133 316 685 389 Wait 96 | . . . 78 18 Move 1352 | 51 126 306 510 359 Hop . | . . . . . Pick Up 15 | 4 1 4 6 . Fast Attach 15 | 4 2 . 9 . Attach 8 | 2 . . 4 2 Detach . | . . . . . Swap 5 | . . 3 2 . Drop 10 | . 1 1 8 . Fire 4 | . 3 . 1 . Melee 79 | . . 2 67 10 Ram . | . . . . . Kick . | . . . . . Crush . | . . . . . Escape Stasis . | . . . . . Rewire . | . . . . . Trap . | . . . . . Miscellaneous . | . . . . . Route ------- -11/Scrapyard -10/Materials -10/Mines (discovered 2 exits: *Mat x2) -9/Materials (discovered 3 exits: [*Mat x2] / [*Min]) -9/Mines History --------- Turn | Location | Event 2 | -11/Scrapyard | Discovered new exit (range 16) 70 | -11/Scrapyard | Entered Materials 164 | -10/Materials | Discovered new exit (range 12) 235 | -10/Materials | Entered Mines 250 | -10/Mines | A weapon hastily lodged in a ceiling crevice suddenly fell to the ground 251 | -10/Mines | Met a Derelict bent on vengeance 267 | -10/Mines | Discovered new exit (range 10) 313 | -10/Mines | Build established: Mutant 434 | -10/Mines | Discovered new exit (range 16) 478 | -10/Mines | Found the Drone Emporium 484 | -10/Mines | Found Prototype Device 619 | -10/Mines | Entered Materials 619 | -9/Materials | Evolved 2 slots: Propulsion x2 1068 | -9/Materials | Discovered new exit (range 16) 1128 | -9/Materials | Build established: Scavenger-Gladiator 1315 | -9/Materials | Discovered new exit (range 16) 1476 | -9/Materials | Discovered new exit (range 15) 1512 | -9/Materials | Entered Mines 1565 | -9/Mines | Found a damaged Exp. Sensor Array with a note attached 1620 | -9/Mines | Assembled infested the area 1623 | -9/Mines | Received a Rocket Launcher from a helpful Derelict 1631 | -9/Mines | Core integrity fell below 50% 1647 | -9/Mines | Assisted by bots powering up and referring to "LRC-V3" 1655 | -9/Mines | Core integrity fell below 20% 1685 | -9/Mines | Lost 4 parts (4n) 1692 | -9/Mines | Lost 3 allies 1761 | -9/Mines | Learned 2 Materials zone layouts 1764 | -9/Mines | Learned location of Storage (-9) 1989 | -9/Mines | Destroyed by as-06268 with Assembled Heavy Rifle Last Messages --------------- Storage failed. Whatever you do stay away from that place, they've tightened security following our previous successful raids." World map updated: -9/Storage. 01766_ 0A-SBN(g): "We scattered so the Unaware couldn't effectively use their advantage in numbers, and I suggest you do the same." 01766_ 0A-SBN(g) slips back into the shadows. 01849_ Melee Analysis Suite destroyed. 01849_ System corrupted by crushing effect (+3). 01850_ as-17600 destroyed. 01862_ %XG LRZMY VCD5OGOWFXVAS KF8SJI>E 4 01871_ Destroyed Asb. F-torch. 01871_ as-73009 destroyed. 01882_ as-94305 destroyed. 01894_ A derelict is hurriedly installing traps. 01925_ ,N2QD,KYW>KL7NP0IFGYZH=KBFQNA0YWP%3 01950_ Katana follow-up attack on as-95870. 01956_ as-95870 destroyed. 01985_ System corrupted: Heat flow error (+271). Map ----- +----------------------------------------------------+ | ?????????##### !##???????????????????????????????? | | ????????## ##% ##??????????????????????????????? | | ???????## #??????????????????????????????? | | ???????# """ #??????????????????????????????? | | ???????# """ ##??????????????????????????????? | | ???????# """ ##???????????????????????????????? | | ???????## #????????????????????????????????? | | ????????### ##???????????????????????????????? | | ??????????## ##??????????????????????????????? | | ???????????## #??????????????????????????????? | | ????????????# #??????????????????????????????? | | ??????###??## #####??????????????????????????? | | ?????## ### % ##?????????????????????????? | | ?????# #?????????????????????????? | | ###### #?????????????? ???????? | | ### ##?????????????= ??????? | | #?## ####????????????"" ??????? | | ####### %########???????????????"" =?????? | | ??????# ##??????????????? ?????? | | ??????# ## #####??????????? #?????? | | ??????# ###### #??????????# ##????? | | ###??## #????## ####??##### #????? | | #?## ##????##### #?## ???? | | # ^### ###??????# #?# ???? | | #??????### ### #??? | | # #???????# @ a #???? | | ##### #???????# % # ??? | | #???# ##???????########## ## #????? | | #???# ##??????????????????# ##??????????? | | ####???## ##????????????????????#####???????????? | | ?????????###?????????????????????????????????????? | | ?????????????????????????????????????????????????? | | | | | | | | | | | | | | | | | | | | | | | | | | | | | | | | | | | | | +----------------------------------------------------+ Best States ------------- Heat Dissipation 28 Energy Generation 14 Energy Capacity 280 Matter Stores 300 Matter Capacity 300 Sight Range 16 Terrain Scan Density 10 Armor Coverage 150 Utility Shielding 33 Evasion (%) 55 Melee Accuracy 5 Item Schematics ----------------- None Robot Schematics ------------------ None Fabricated ------------ Nothing Alien Tech Used ----------------- None Achievements -------------- None Challenges ------------ None Game ------ Seed NuclearAntimatterDevice Manual? 0 Play Time 00:13:58 Cumulative 54.7 hours Start 2024.03.12 @ 11:29:10 End 2024.03.12 @ 11:40:48 Sessions 1 Manual Loads 0 Difficulty Rogue Special Mode None Game No. 93 Rogue 77 Adventurer 16 Explorer 0 Win Type - Total 1 Types 1/0/0/0/0/0/0/0/0 Lore% 31 Gallery% 52 Achievement% 47 Wizard Run 0 Options --------- Layout 2 ASCII 0 Keyboard 0 Movement Vi Keybinds 0 Fullscreen 1 Font 24/Smallcaps Map View 50x44 Zoom Use 0% Tactical HUD 1 Map Filters NONE Filters NONE Steam 1 RUN: 65a8c452-5811-4765-a0d9-6c200c329a7b